[Event "Late-Titled-Tuesday-Blitz-October-24-2023"]
[Site "Chess.com"]
[Date "2023.10.24"]
[Round "5"]
[White "Andrei_Skvortsov"]
[Black "Mykola-Bortnyk"]
[Result "0-1"]
[WhiteElo "2662"]
[BlackElo "2954"]
[TimeControl "180+1"]
[EndTime "14:56:32 PDT"]
[Termination "Mykola-Bortnyk won by resignation"]

1. e4 {[%clk 0:03:00.9]} 1... Nf6 {[%clk 0:02:57.4]} 2. Nc3 {[%clk 0:02:58.7]}
2... d5 {[%clk 0:02:54.3]} 3. e5 {[%clk 0:02:57.8]} 3... Nfd7 {[%clk 0:02:54.5]}
4. Nxd5 {[%clk 0:02:57]} 4... Nxe5 {[%clk 0:02:54.3]} 5. Ne3 {[%clk 0:02:57.4]}
5... c5 {[%clk 0:02:54.3]} 6. Nf3 {[%clk 0:02:56]} 6... Nbc6 {[%clk 0:02:49]} 7.
Bb5 {[%clk 0:02:54.4]} 7... Bd7 {[%clk 0:02:45.5]} 8. O-O {[%clk 0:02:50.3]}
8... e6 {[%clk 0:02:40.7]} 9. Be2 {[%clk 0:02:34.6]} 9... Bd6 {[%clk 0:02:37.6]}
10. Nc4 {[%clk 0:02:27.6]} 10... Nxf3+ {[%clk 0:02:24.1]} 11. Bxf3 {[%clk
0:02:25.5]} 11... Bxh2+ {[%clk 0:02:24.8]} 12. Kxh2 {[%clk 0:02:26.1]} 12...
Qh4+ {[%clk 0:02:25.1]} 13. Kg1 {[%clk 0:02:23.4]} 13... Qxc4 {[%clk 0:02:25.9]}
14. Re1 {[%clk 0:02:18.2]} 14... Nd4 {[%clk 0:02:18]} 15. Bxb7 {[%clk
0:02:13.6]} 15... Rb8 {[%clk 0:02:10.1]} 16. Be4 {[%clk 0:02:09.9]} 16... Bc6
{[%clk 0:01:59.9]} 17. b3 {[%clk 0:02:05.1]} 17... Qa6 {[%clk 0:01:53.5]} 18. c3
{[%clk 0:02:00]} 18... Bxe4 {[%clk 0:01:46.8]} 19. cxd4 {[%clk 0:01:57.5]} 19...
Qc6 {[%clk 0:01:39.2]} 20. Qg4 {[%clk 0:01:54.5]} 20... Bg6 {[%clk 0:01:22.9]}
21. Ba3 {[%clk 0:01:41.8]} 21... O-O {[%clk 0:01:11.4]} 22. Bxc5 {[%clk
0:01:39.5]} 22... Rfd8 {[%clk 0:01:10.4]} 23. Bxa7 {[%clk 0:01:38.8]} 23... Rb4
{[%clk 0:01:08.5]} 24. Qf3 {[%clk 0:01:33.6]} 24... Qxf3 {[%clk 0:00:55.6]} 25.
gxf3 {[%clk 0:01:32.4]} 25... Ra8 {[%clk 0:00:54.3]} 26. Bc5 {[%clk 0:01:30.7]}
26... Rb7 {[%clk 0:00:55]} 27. Re3 {[%clk 0:01:22.3]} 27... h5 {[%clk
0:00:53.3]} 28. a4 {[%clk 0:01:20.1]} 28... Bc2 {[%clk 0:00:53]} 29. Ra3 {[%clk
0:01:18.2]} 29... g5 {[%clk 0:00:48.9]} 30. Rc3 {[%clk 0:01:17.9]} 30... Bd1
{[%clk 0:00:49.4]} 31. a5 {[%clk 0:01:16.8]} 31... Ra6 {[%clk 0:00:44.3]} 32. b4
{[%clk 0:01:15.9]} 32... Be2 {[%clk 0:00:44.9]} 33. Re3 {[%clk 0:01:06.7]} 33...
Bc4 {[%clk 0:00:43.9]} 34. Rac3 {[%clk 0:01:00.7]} 34... Bd5 {[%clk 0:00:42.7]}
35. Kh2 {[%clk 0:00:52.3]} 35... Kg7 {[%clk 0:00:41.9]} 36. Rc1 {[%clk
0:00:47.9]} 36... Kg6 {[%clk 0:00:38.7]} 37. Rg1 {[%clk 0:00:48.2]} 37... f6
{[%clk 0:00:36.2]} 38. f4 {[%clk 0:00:43.2]} 38... g4 {[%clk 0:00:36.7]} 39. Kg3
{[%clk 0:00:40.2]} 39... Kf5 {[%clk 0:00:34.8]} 40. Kh4 {[%clk 0:00:26.2]} 40...
Kxf4 {[%clk 0:00:34.4]} 41. Rb1 {[%clk 0:00:21.6]} 41... Rxa5 {[%clk 0:00:23.4]}
42. bxa5 {[%clk 0:00:20.4]} 42... Rxb1 {[%clk 0:00:23.6]} 43. Kxh5 {[%clk
0:00:20.9]} 43... Be4 {[%clk 0:00:20.1]} 44. Kh6 {[%clk 0:00:19.9]} 44... Rb7
{[%clk 0:00:20.7]} 45. Rxe4+ {[%clk 0:00:18]} 45... Kxe4 {[%clk 0:00:21.6]} 46.
a6 {[%clk 0:00:18.6]} 46... Rb8 {[%clk 0:00:18.5]} 47. Kg6 {[%clk 0:00:16.1]}
47... f5 {[%clk 0:00:19.2]} 48. Kf6 {[%clk 0:00:13.5]} 48... f4 {[%clk
0:00:12.6]} 49. Kxe6 {[%clk 0:00:11.5]} 49... Re8+ {[%clk 0:00:13.2]} 50. Kd7
{[%clk 0:00:11.3]} 50... Ra8 {[%clk 0:00:12.9]} 51. a7 {[%clk 0:00:10.5]} 51...
Kd5 {[%clk 0:00:13.6]} 52. Kc7 {[%clk 0:00:07.6]} 52... g3 {[%clk 0:00:13.7]}
53. fxg3 {[%clk 0:00:08.1]} 53... f3 {[%clk 0:00:14.3]} 54. Kb7 {[%clk
0:00:08.8]} 54... Rxa7+ {[%clk 0:00:14.7]} 55. Kxa7 {[%clk 0:00:08.1]} 55... f2
{[%clk 0:00:15.6]} 56. Kb6 {[%clk 0:00:08.4]} 56... f1=Q {[%clk 0:00:16.5]} 57.
Kc7 {[%clk 0:00:08.2]} 57... Qg2 {[%clk 0:00:16]} 58. Kd7 {[%clk 0:00:07.6]}
58... Qxg3 {[%clk 0:00:16.3]} 59. Ke7 {[%clk 0:00:08.3]} 59... Qg7+ {[%clk
0:00:16.9]} 60. Kd8 {[%clk 0:00:07.8]} 60... Qb7 {[%clk 0:00:16.8]} 0-1

[Event "Late-Titled-Tuesday-Blitz-October-24-2023"]
[Site "Chess.com"]
[Date "2023.10.24"]
[Round "5"]
[White "Malev212"]
[Black "Skatchkov_V"]
[Result "0-1"]
[WhiteElo "2640"]
[BlackElo "2569"]
[TimeControl "180+1"]
[EndTime "14:56:40 PDT"]
[Termination "Skatchkov_V won on time"]

1. e4 {[%clk 0:03:00.9]} 1... e5 {[%clk 0:02:52.4]} 2. Nf3 {[%clk 0:02:57.7]}
2... d5 {[%clk 0:02:51.6]} 3. Nxe5 {[%clk 0:02:36.8]} 3... Bd6 {[%clk
0:02:51.5]} 4. d4 {[%clk 0:02:24]} 4... dxe4 {[%clk 0:02:51]} 5. Nc3 {[%clk
0:02:11.4]} 5... Bxe5 {[%clk 0:02:51]} 6. dxe5 {[%clk 0:02:09.7]} 6... Qxd1+
{[%clk 0:02:51.9]} 7. Nxd1 {[%clk 0:02:04.9]} 7... Nc6 {[%clk 0:02:52.3]} 8. Bf4
{[%clk 0:02:02]} 8... Bf5 {[%clk 0:02:51.2]} 9. Ne3 {[%clk 0:02:00.2]} 9... Bd7
{[%clk 0:02:40.3]} 10. O-O-O {[%clk 0:01:32.1]} 10... O-O-O {[%clk 0:02:35.2]}
11. Bc4 {[%clk 0:01:30.8]} 11... Be6 {[%clk 0:01:32.3]} 12. Bxe6+ {[%clk
0:01:28.5]} 12... fxe6 {[%clk 0:01:32.2]} 13. Rxd8+ {[%clk 0:01:27.1]} 13...
Kxd8 {[%clk 0:01:31.4]} 14. h4 {[%clk 0:01:17.1]} 14... Nge7 {[%clk 0:01:31]}
15. h5 {[%clk 0:01:16.4]} 15... Rf8 {[%clk 0:01:31]} 16. g3 {[%clk 0:01:05.8]}
16... Ke8 {[%clk 0:01:20.6]} 17. Re1 {[%clk 0:01:03.5]} 17... Nd5 {[%clk
0:00:52.9]} 18. Ng2 {[%clk 0:00:58.5]} 18... Rf5 {[%clk 0:00:43.7]} 19. Rxe4
{[%clk 0:00:49.1]} 19... Rxh5 {[%clk 0:00:42.2]} 20. c4 {[%clk 0:00:46.8]} 20...
Nde7 {[%clk 0:00:38.3]} 21. g4 {[%clk 0:00:38.1]} 21... Rh1+ {[%clk 0:00:38.2]}
22. Kd2 {[%clk 0:00:36.4]} 22... Rg1 {[%clk 0:00:36.9]} 23. Ne3 {[%clk
0:00:32.2]} 23... h6 {[%clk 0:00:30.3]} 24. Bg3 {[%clk 0:00:31]} 24... g6 {[%clk
0:00:30.5]} 25. a3 {[%clk 0:00:30]} 25... a5 {[%clk 0:00:24.7]} 26. Kc2 {[%clk
0:00:24.8]} 26... b6 {[%clk 0:00:20.3]} 27. Kb3 {[%clk 0:00:23.6]} 27... Rb1
{[%clk 0:00:19.3]} 28. Ka2 {[%clk 0:00:22.2]} 28... Re1 {[%clk 0:00:18.3]} 29.
Nd5 {[%clk 0:00:16.9]} 29... Rxe4 {[%clk 0:00:15.8]} 30. Nf6+ {[%clk 0:00:17.3]}
30... Kf7 {[%clk 0:00:15.5]} 31. Nxe4 {[%clk 0:00:18.2]} 31... h5 {[%clk
0:00:15.4]} 32. Ng5+ {[%clk 0:00:13.6]} 32... Ke8 {[%clk 0:00:15.9]} 33. Nxe6
{[%clk 0:00:13.4]} 33... Kd7 {[%clk 0:00:15.5]} 34. Ng7 {[%clk 0:00:11.7]} 34...
hxg4 {[%clk 0:00:15.2]} 35. e6+ {[%clk 0:00:11.5]} 35... Kd8 {[%clk 0:00:14.6]}
36. Kb3 {[%clk 0:00:11.7]} 36... Nf5 {[%clk 0:00:13.3]} 37. Nxf5 {[%clk
0:00:10.2]} 37... gxf5 {[%clk 0:00:14]} 38. Kc3 {[%clk 0:00:10.5]} 38... Ne7
{[%clk 0:00:10.8]} 39. Kd4 {[%clk 0:00:09.1]} 39... Ng6 {[%clk 0:00:11.5]} 40.
Ke3 {[%clk 0:00:07]} 40... c6 {[%clk 0:00:10.7]} 41. Bd6 {[%clk 0:00:05.8]}
41... b5 {[%clk 0:00:11.2]} 42. cxb5 {[%clk 0:00:03.9]} 42... cxb5 {[%clk
0:00:11.6]} 43. Kd4 {[%clk 0:00:04.7]} 43... Ke8 {[%clk 0:00:09.6]} 44. Kc5
{[%clk 0:00:04.4]} 44... f4 {[%clk 0:00:09.3]} 45. Kxb5 {[%clk 0:00:04.4]} 45...
g3 {[%clk 0:00:04.9]} 46. fxg3 {[%clk 0:00:03.4]} 46... f3 {[%clk 0:00:05.8]}
47. Bc5 {[%clk 0:00:03]} 47... Ne5 {[%clk 0:00:04.4]} 48. Kxa5 {[%clk
0:00:02.6]} 48... Nd3 {[%clk 0:00:04.3]} 49. Bd4 {[%clk 0:00:02.3]} 49... Nxb2
{[%clk 0:00:04.8]} 50. Kb5 {[%clk 0:00:01.9]} 50... Ke7 {[%clk 0:00:03]} 51. a4
{[%clk 0:00:02.8]} 51... Kxe6 {[%clk 0:00:03.4]} 52. a5 {[%clk 0:00:03]} 52...
Kd5 {[%clk 0:00:04.1]} 0-1

[Event "Late-Titled-Tuesday-Blitz-October-24-2023"]
[Site "Chess.com"]
[Date "2023.10.24"]
[Round "5"]
[White "NMJeevanK"]
[Black "Tunahan_Makaraci"]
[Result "0-1"]
[WhiteElo "2590"]
[BlackElo "2438"]
[TimeControl "180+1"]
[EndTime "14:56:40 PDT"]
[Termination "Tunahan_Makaraci won by resignation"]

1. e4 {[%clk 0:03:00.9]} 1... Nf6 {[%clk 0:02:58.2]} 2. e5 {[%clk 0:03:00.9]}
2... Nd5 {[%clk 0:02:58.2]} 3. d4 {[%clk 0:03:01.6]} 3... d6 {[%clk 0:02:57.9]}
4. c4 {[%clk 0:03:02.3]} 4... Nb6 {[%clk 0:02:58]} 5. exd6 {[%clk 0:03:03.2]}
5... cxd6 {[%clk 0:02:58.9]} 6. Nc3 {[%clk 0:03:03.6]} 6... g6 {[%clk
0:02:59.4]} 7. Nf3 {[%clk 0:03:01.3]} 7... Bg7 {[%clk 0:02:59]} 8. h3 {[%clk
0:03:02]} 8... O-O {[%clk 0:02:58.8]} 9. Be2 {[%clk 0:03:02]} 9... Nc6 {[%clk
0:02:56.5]} 10. Be3 {[%clk 0:03:02]} 10... Bf5 {[%clk 0:02:52.2]} 11. a3 {[%clk
0:02:59.6]} 11... d5 {[%clk 0:02:48.1]} 12. c5 {[%clk 0:02:56.2]} 12... Nc4
{[%clk 0:02:46]} 13. Bxc4 {[%clk 0:02:53.6]} 13... dxc4 {[%clk 0:02:46]} 14. O-O
{[%clk 0:02:51.4]} 14... Bd3 {[%clk 0:02:45.1]} 15. Re1 {[%clk 0:02:51.7]} 15...
Re8 {[%clk 0:02:28.4]} 16. Qa4 {[%clk 0:02:16.3]} 16... Nxd4 {[%clk 0:02:22.6]}
17. Nxd4 {[%clk 0:02:15.2]} 17... Bxd4 {[%clk 0:02:23.5]} 18. Bxd4 {[%clk
0:02:12.5]} 18... Qxd4 {[%clk 0:02:23.3]} 19. c6 {[%clk 0:02:11.1]} 19... bxc6
{[%clk 0:02:18.4]} 20. Qxc6 {[%clk 0:02:12]} 20... Rac8 {[%clk 0:02:02.4]} 21.
Qa4 {[%clk 0:02:06.6]} 21... Rb8 {[%clk 0:01:52.3]} 22. Rad1 {[%clk 0:02:06.6]}
22... Kg7 {[%clk 0:01:45]} 23. Re3 {[%clk 0:02:05.4]} 23... Rbd8 {[%clk
0:01:26.6]} 24. Qb4 {[%clk 0:01:54]} 24... Rb8 {[%clk 0:01:24.9]} 25. Qa4 {[%clk
0:01:54.1]} 25... e5 {[%clk 0:01:25.1]} 26. Rd2 {[%clk 0:01:44.9]} 26... Re6
{[%clk 0:01:24.3]} 27. Qa5 {[%clk 0:01:36.8]} 27... e4 {[%clk 0:01:16.5]} 28.
Qc7 {[%clk 0:01:23.4]} 28... Rbb6 {[%clk 0:00:59.7]} 29. Qxa7 {[%clk 0:01:18.5]}
29... Qe5 {[%clk 0:00:48.6]} 30. Qa4 {[%clk 0:00:56.3]} 30... f5 {[%clk
0:00:42.6]} 31. Qd7+ {[%clk 0:00:53.6]} 31... Re7 {[%clk 0:00:42.5]} 32. Qd8
{[%clk 0:00:52.9]} 32... Rd6 {[%clk 0:00:40.9]} 33. Qb8 {[%clk 0:00:50.4]} 33...
Rde6 {[%clk 0:00:29.6]} 34. Qxe5+ {[%clk 0:00:38.9]} 34... Rxe5 {[%clk
0:00:29.9]} 35. g3 {[%clk 0:00:39.2]} 35... g5 {[%clk 0:00:29.9]} 36. f4 {[%clk
0:00:34]} 36... exf3 {[%clk 0:00:26.4]} 37. Rxf3 {[%clk 0:00:32.8]} 37... Re1+
{[%clk 0:00:23.6]} 38. Kg2 {[%clk 0:00:28.8]} 38... Rc1 {[%clk 0:00:18.2]} 39.
Rff2 {[%clk 0:00:24.6]} 39... Ree1 {[%clk 0:00:17.2]} 40. Kf3 {[%clk 0:00:22.6]}
40... Kg6 {[%clk 0:00:12.2]} 41. g4 {[%clk 0:00:21.1]} 41... f4 {[%clk
0:00:10.6]} 42. h4 {[%clk 0:00:08.7]} 42... Re3+ {[%clk 0:00:10.3]} 43. Kg2
{[%clk 0:00:09.4]} 43... Rg3+ {[%clk 0:00:09.2]} 44. Kh2 {[%clk 0:00:09.7]}
44... Rxg4 {[%clk 0:00:06.7]} 45. hxg5 {[%clk 0:00:06.8]} 45... Kxg5 {[%clk
0:00:07.1]} 46. Rg2 {[%clk 0:00:06.8]} 46... h5 {[%clk 0:00:06.8]} 47. Nd5
{[%clk 0:00:03.1]} 47... f3 {[%clk 0:00:03.5]} 48. Rxg4+ {[%clk 0:00:02.7]}
48... hxg4 {[%clk 0:00:04.3]} 49. Kg3 {[%clk 0:00:02.7]} 49... Rg1+ {[%clk
0:00:04.5]} 50. Kf2 {[%clk 0:00:03.2]} 50... Rg2+ {[%clk 0:00:04.6]} 51. Ke3
{[%clk 0:00:03.9]} 51... Rxd2 {[%clk 0:00:04.5]} 52. Kxd2 {[%clk 0:00:04.8]}
52... f2 {[%clk 0:00:05.2]} 53. Ne3 {[%clk 0:00:05.5]} 53... g3 {[%clk
0:00:05.3]} 54. b3 {[%clk 0:00:05.6]} 54... f1=Q {[%clk 0:00:04]} 55. Nxf1
{[%clk 0:00:05.9]} 55... Bxf1 {[%clk 0:00:04.9]} 56. Ke1 {[%clk 0:00:06.3]}
56... g2 {[%clk 0:00:05.1]} 57. Kf2 {[%clk 0:00:06.2]} 57... cxb3 {[%clk
0:00:05.6]} 0-1

[Event "Late-Titled-Tuesday-Blitz-October-24-2023"]
[Site "Chess.com"]
[Date "2023.10.24"]
[Round "5"]
[White "koncheto"]
[Black "OK97"]
[Result "1-0"]
[WhiteElo "2572"]
[BlackElo "2750"]
[TimeControl "180+1"]
[EndTime "14:56:42 PDT"]
[Termination "koncheto won on time"]

1. e4 {[%clk 0:03:00.9]} 1... c5 {[%clk 0:02:59.9]} 2. Nf3 {[%clk 0:03:00.7]}
2... d6 {[%clk 0:03:00.3]} 3. d4 {[%clk 0:03:00.7]} 3... cxd4 {[%clk 0:03:01.2]}
4. Nxd4 {[%clk 0:03:01.6]} 4... Nf6 {[%clk 0:03:01.6]} 5. f3 {[%clk 0:03:02.2]}
5... e5 {[%clk 0:03:00.7]} 6. Nb3 {[%clk 0:03:02.1]} 6... a5 {[%clk 0:03:01]} 7.
a4 {[%clk 0:03:01.3]} 7... Be7 {[%clk 0:02:53.4]} 8. c4 {[%clk 0:03:01.1]} 8...
Nc6 {[%clk 0:02:48.8]} 9. Nc3 {[%clk 0:03:01.1]} 9... Nb4 {[%clk 0:02:48.3]} 10.
Be3 {[%clk 0:02:59.5]} 10... O-O {[%clk 0:02:48.2]} 11. Be2 {[%clk 0:02:59]}
11... Be6 {[%clk 0:02:47.4]} 12. Rc1 {[%clk 0:02:52.5]} 12... Nh5 {[%clk
0:02:44.7]} 13. Qd2 {[%clk 0:02:49.8]} 13... Rc8 {[%clk 0:02:28]} 14. Nd5 {[%clk
0:02:42.7]} 14... Nxd5 {[%clk 0:02:23.1]} 15. cxd5 {[%clk 0:02:39.9]} 15...
Rxc1+ {[%clk 0:02:23]} 16. Qxc1 {[%clk 0:02:37.9]} 16... Bd7 {[%clk 0:02:22]}
17. Qc3 {[%clk 0:02:20.3]} 17... b6 {[%clk 0:02:05]} 18. Bb5 {[%clk 0:02:16.8]}
18... Bxb5 {[%clk 0:01:44.2]} 19. axb5 {[%clk 0:02:16.5]} 19... Bg5 {[%clk
0:01:44.5]} 20. O-O {[%clk 0:02:06]} 20... Nf4 {[%clk 0:01:43]} 21. Kh1 {[%clk
0:01:27.6]} 21... f5 {[%clk 0:01:11.6]} 22. Qc6 {[%clk 0:01:18]} 22... fxe4
{[%clk 0:01:02.8]} 23. Bxb6 {[%clk 0:01:08.5]} 23... Qe7 {[%clk 0:00:57.3]} 24.
fxe4 {[%clk 0:01:02.9]} 24... Nd3 {[%clk 0:00:49.7]} 25. Rb1 {[%clk 0:00:39.2]}
25... a4 {[%clk 0:00:41.4]} 26. Qc2 {[%clk 0:00:27.9]} 26... Nb4 {[%clk
0:00:12.5]} 27. Qc4 {[%clk 0:00:27.2]} 27... axb3 {[%clk 0:00:09.3]} 28. Qxb4
{[%clk 0:00:26.9]} 28... Qf6 {[%clk 0:00:03.8]} 29. Bg1 {[%clk 0:00:24.3]} 29...
Qh6 {[%clk 0:00:03.8]} 30. b6 {[%clk 0:00:21.5]} 30... Qh4 {[%clk 0:00:03]} 31.
b7 {[%clk 0:00:17.7]} 31... Rb8 {[%clk 0:00:03.6]} 32. Ba7 {[%clk 0:00:16.2]}
32... Bf4 {[%clk 0:00:02.6]} 33. Bg1 {[%clk 0:00:08.9]} 33... Qe7 {[%clk
0:00:03.1]} 34. Qxb3 {[%clk 0:00:04.6]} 34... Rxb7 {[%clk 0:00:04]} 35. Qa4
{[%clk 0:00:04.7]} 35... h5 {[%clk 0:00:04.4]} 36. b4 {[%clk 0:00:05]} 36... h4
{[%clk 0:00:04.8]} 37. h3 {[%clk 0:00:04.8]} 37... Qg5 {[%clk 0:00:04.3]} 38.
Bf2 {[%clk 0:00:05.3]} 38... Rf7 {[%clk 0:00:03.8]} 39. Qc2 {[%clk 0:00:04.1]}
39... Bd2 {[%clk 0:00:04.2]} 40. Rf1 {[%clk 0:00:03.7]} 40... Be3 {[%clk
0:00:04.2]} 41. Kg1 {[%clk 0:00:03.6]} 41... Bf4 {[%clk 0:00:03.5]} 42. b5
{[%clk 0:00:03.5]} 42... Rb7 {[%clk 0:00:03.1]} 43. Qc8+ {[%clk 0:00:03]} 43...
Kh7 {[%clk 0:00:03.4]} 44. Qxb7 {[%clk 0:00:03.4]} 44... Qg6 {[%clk 0:00:03.2]}
45. Qc8 {[%clk 0:00:03.7]} 45... Qxe4 {[%clk 0:00:03.6]} 46. Qg4 {[%clk
0:00:03.9]} 46... Qxd5 {[%clk 0:00:04]} 47. Qxh4+ {[%clk 0:00:04.1]} 47... Kg8
{[%clk 0:00:04.4]} 48. Bg3 {[%clk 0:00:03.9]} 48... Be3+ {[%clk 0:00:02.9]} 49.
Kh1 {[%clk 0:00:04.4]} 49... Qxb5 {[%clk 0:00:03.4]} 50. Rf3 {[%clk 0:00:02.6]}
50... Qb1+ {[%clk 0:00:03.3]} 51. Be1 {[%clk 0:00:03.2]} 51... Qd3 {[%clk
0:00:03.2]} 52. Qg3 {[%clk 0:00:02.4]} 52... Qb1 {[%clk 0:00:01.9]} 53. Rxe3
{[%clk 0:00:02.5]} 1-0

[Event "Late-Titled-Tuesday-Blitz-October-24-2023"]
[Site "Chess.com"]
[Date "2023.10.24"]
[Round "5"]
[White "wild3000"]
[Black "Likvidator228"]
[Result "1/2-1/2"]
[WhiteElo "2396"]
[BlackElo "2586"]
[TimeControl "180+1"]
[EndTime "14:56:52 PDT"]
[Termination "Game drawn by repetition"]

1. d4 {[%clk 0:02:50.9]} 1... f5 {[%clk 0:02:58.3]} 2. e4 {[%clk 0:02:43.7]}
2... fxe4 {[%clk 0:02:58.1]} 3. Nc3 {[%clk 0:02:43.7]} 3... Nf6 {[%clk
0:02:54.7]} 4. Bg5 {[%clk 0:02:42.7]} 4... e6 {[%clk 0:02:54.4]} 5. Nxe4 {[%clk
0:02:35.9]} 5... Be7 {[%clk 0:02:54.6]} 6. Nxf6+ {[%clk 0:02:31.9]} 6... Bxf6
{[%clk 0:02:55.5]} 7. Be3 {[%clk 0:02:23.3]} 7... b6 {[%clk 0:02:53]} 8. Bd3
{[%clk 0:02:19.9]} 8... Bb7 {[%clk 0:02:39.9]} 9. Qh5+ {[%clk 0:02:11.4]} 9...
g6 {[%clk 0:02:39.8]} 10. Qh3 {[%clk 0:02:11]} 10... Qe7 {[%clk 0:02:34.1]} 11.
c3 {[%clk 0:02:04.6]} 11... Nc6 {[%clk 0:02:32.4]} 12. Nf3 {[%clk 0:01:51.3]}
12... O-O-O {[%clk 0:02:32]} 13. O-O {[%clk 0:01:43.8]} 13... g5 {[%clk
0:02:07.7]} 14. Qh5 {[%clk 0:01:39.4]} 14... Rdg8 {[%clk 0:02:03.9]} 15. a4
{[%clk 0:01:25.4]} 15... g4 {[%clk 0:01:56.6]} 16. Nd2 {[%clk 0:01:24.6]} 16...
Qe8 {[%clk 0:01:41.5]} 17. Qxe8+ {[%clk 0:01:23]} 17... Rxe8 {[%clk 0:01:41.2]}
18. Ne4 {[%clk 0:01:13.2]} 18... Be7 {[%clk 0:01:40.9]} 19. b4 {[%clk
0:01:11.7]} 19... a5 {[%clk 0:01:40.8]} 20. b5 {[%clk 0:01:05.4]} 20... Nd8
{[%clk 0:01:39.5]} 21. c4 {[%clk 0:01:01.2]} 21... Nf7 {[%clk 0:01:34.2]} 22. c5
{[%clk 0:00:57.5]} 22... Kb8 {[%clk 0:01:15.9]} 23. c6 {[%clk 0:00:42.2]} 23...
dxc6 {[%clk 0:01:12.9]} 24. bxc6 {[%clk 0:00:40.4]} 24... Bxc6 {[%clk
0:01:13.2]} 25. Rfc1 {[%clk 0:00:39.2]} 25... Bd5 {[%clk 0:01:05.5]} 26. Rab1
{[%clk 0:00:33.7]} 26... Nd6 {[%clk 0:01:00.3]} 27. Nc3 {[%clk 0:00:32.4]} 27...
Bb7 {[%clk 0:00:56.9]} 28. Bf4 {[%clk 0:00:29.5]} 28... Rc8 {[%clk 0:00:37.3]}
29. Nb5 {[%clk 0:00:28.2]} 29... Nxb5 {[%clk 0:00:36.3]} 30. Bxb5 {[%clk
0:00:29.1]} 30... Bd6 {[%clk 0:00:34.2]} 31. Bxd6 {[%clk 0:00:26.7]} 31... cxd6
{[%clk 0:00:35.1]} 32. Bd7 {[%clk 0:00:26.7]} 32... Rxc1+ {[%clk 0:00:35.5]} 33.
Rxc1 {[%clk 0:00:27.2]} 33... e5 {[%clk 0:00:33]} 34. dxe5 {[%clk 0:00:27.4]}
34... dxe5 {[%clk 0:00:33.9]} 35. Bxg4 {[%clk 0:00:27.5]} 35... Rg8 {[%clk
0:00:30.7]} 36. Bh3 {[%clk 0:00:27.3]} 36... Rd8 {[%clk 0:00:31.3]} 37. Re1
{[%clk 0:00:24.8]} 37... Rd4 {[%clk 0:00:30.8]} 38. Ra1 {[%clk 0:00:19.6]} 38...
Bc6 {[%clk 0:00:30.4]} 39. Bf5 {[%clk 0:00:19]} 39... h6 {[%clk 0:00:30.1]} 40.
h4 {[%clk 0:00:17.8]} 40... Rxh4 {[%clk 0:00:29.6]} 41. Re1 {[%clk 0:00:16.1]}
41... Rxa4 {[%clk 0:00:22.6]} 42. Rxe5 {[%clk 0:00:16]} 42... Ra1+ {[%clk
0:00:20.5]} 43. Kh2 {[%clk 0:00:15.8]} 43... a4 {[%clk 0:00:20.6]} 44. Re6
{[%clk 0:00:13.9]} 44... Kc7 {[%clk 0:00:21.1]} 45. Rxh6 {[%clk 0:00:13.3]}
45... a3 {[%clk 0:00:21.6]} 46. Rh7+ {[%clk 0:00:12.9]} 46... Kd6 {[%clk
0:00:21.7]} 47. Rh6+ {[%clk 0:00:13]} 47... Kc5 {[%clk 0:00:21.7]} 48. Be6
{[%clk 0:00:12.3]} 48... Re1 {[%clk 0:00:20.1]} 49. Rh5+ {[%clk 0:00:11.1]}
49... Kb4 {[%clk 0:00:19.5]} 50. Rh4+ {[%clk 0:00:09.9]} 50... Ka5 {[%clk
0:00:19.2]} 51. Bg8 {[%clk 0:00:08.9]} 51... b5 {[%clk 0:00:19.3]} 52. Rh6
{[%clk 0:00:05.1]} 52... Be4 {[%clk 0:00:17.3]} 53. Re6 {[%clk 0:00:03.5]} 53...
Re2 {[%clk 0:00:17.1]} 54. f3 {[%clk 0:00:03.3]} 54... Bxf3 {[%clk 0:00:16.9]}
55. Rxe2 {[%clk 0:00:03.3]} 55... Bxe2 {[%clk 0:00:17.2]} 56. Kg1 {[%clk
0:00:02.5]} 56... b4 {[%clk 0:00:17.3]} 57. Kf2 {[%clk 0:00:03.4]} 57... Bd1
{[%clk 0:00:17.7]} 58. Ke1 {[%clk 0:00:03.6]} 58... Bg4 {[%clk 0:00:17.5]} 59.
Kd2 {[%clk 0:00:04.5]} 59... Ka4 {[%clk 0:00:18]} 60. Kc1 {[%clk 0:00:04.8]}
60... b3 {[%clk 0:00:18]} 61. Bxb3+ {[%clk 0:00:04.8]} 61... Kxb3 {[%clk
0:00:18.1]} 62. Kb1 {[%clk 0:00:05.7]} 62... Be2 {[%clk 0:00:17.9]} 63. Ka1
{[%clk 0:00:06.6]} 63... Ka4 {[%clk 0:00:18.2]} 64. g4 {[%clk 0:00:07]} 64...
Bxg4 {[%clk 0:00:18.2]} 65. Kb1 {[%clk 0:00:07.1]} 65... Bd7 {[%clk 0:00:18.5]}
66. Ka1 {[%clk 0:00:08]} 66... Kb3 {[%clk 0:00:18.6]} 67. Kb1 {[%clk 0:00:08.9]}
67... Ka4 {[%clk 0:00:18.2]} 68. Ka1 {[%clk 0:00:09.8]} 68... Kb3 {[%clk
0:00:18.8]} 69. Kb1 {[%clk 0:00:10.7]} 69... Ka4 {[%clk 0:00:19.7]} 1/2-1/2